bitfinex/quotes_BTCUSD_20260103
["timestamp","ask_amount","ask_price","bid_price","bid_amount"]
[1767429427583,0.10732253,89769.0,89766.0,0.06684037]
[1767429427815,0.01116,89772.0,89766.0,0.06684037]
[1767429427816,0.01116,89772.0,89769.0,0.000999]
[1767429428019,0.02229933,89772.0,89769.0,0.000999]
[1767429428237,0.01116,89772.0,89768.0,0.01113982]
[1767429428409,0.01116,89772.0,89767.0,0.01113995]
[1767429428914,0.01113833,89780.0,89772.0,0.01113933]
[1767429429143,0.01116,89780.0,89777.0,0.01113871]
[1767429429322,0.01113722,89789.0,89781.0,0.01113821]
[1767429429481,0.01116,89787.0,89782.0,0.05568998]
[1767429429835,0.01116,89787.0,89785.0,0.16445466]
[1767429430194,0.01116,89791.0,89785.0,0.17559237]
[1767429430418,0.02229697,89791.0,89785.0,0.17559237]
[1767429430618,0.02229697,89791.0,89785.0,0.01113771]
[1767429431024,0.01116,89791.0,89785.0,0.01113771]
[1767429431237,0.01113709,89790.0,89784.0,0.00794635]
[1767429431440,0.02229697,89791.0,89785.0,0.01113771]
[1767429432937,0.01113709,89790.0,89784.0,0.00794635]
[1767429433155,0.01113722,89789.0,89783.0,0.01113796]
[1767429433317,0.01113709,89790.0,89783.0,0.01113796]
[1767429433672,0.0004,89792.0,89785.0,0.01113771]
[1767429433801,0.0004,89792.0,89788.0,0.01113734]
[1767429434023,0.0004,89792.0,89787.0,0.01113746]
[1767429434024,0.01153684,89792.0,89787.0,0.01113746]
[1767429434233,0.0004,89792.0,89788.0,0.01113734]
[1767429435138,0.000999,89788.0,89785.0,0.01113771]
[1767429435344,0.0004,89792.0,89788.0,0.01113734]
[1767429435744,0.0004,89792.0,89789.0,0.01113722]
[1767429435943,0.0004,89800.0,89796.0,0.01113635]
[1767429436290,0.01179719,89799.0,89796.0,0.06681759]
[1767429436442,0.01179719,89799.0,89797.0,0.05568052]
[1767429437082,0.01179719,89799.0,89796.0,0.06681759]
[1767429437522,0.01179719,89799.0,89797.0,0.05568061]
[1767429437673,0.00063719,89799.0,89797.0,0.05568061]
[1767429437887,0.00063719,89799.0,89796.0,0.06681759]
[1767429438089,0.01113436,89812.0,89800.0,0.01113585]
[1767429438421,0.01113461,89810.0,89800.0,0.01113585]
[1767429438566,0.01113474,89809.0,89799.0,0.16445466]
[1767429438995,0.01113498,89807.0,89799.0,0.16345566]
[1767429439219,0.01113523,89805.0,89799.0,0.16345566]
[1767429439395,0.01113536,89804.0,89799.0,0.16345566]
[1767429439795,0.01113523,89805.0,89799.0,0.17459164]
[1767429440047,0.01113498,89807.0,89801.0,0.01113573]
[1767429440386,0.01113498,89807.0,89799.0,0.17459164]
[1767429440387,0.01113511,89806.0,89799.0,0.17459164]
[1767429440820,0.01113511,89806.0,89801.0,0.17559039]
[1767429441014,0.01113486,89808.0,89801.0,0.17559039]
[1767429441217,0.01113498,89807.0,89802.0,0.16445466]
[1767429441383,0.01113498,89807.0,89802.0,0.0111356]
[1767429441587,0.01113498,89807.0,89802.0,0.17559026]
[1767429441588,0.01124258,89807.0,89802.0,0.17559026]
[1767429441832,0.01124258,89807.0,89802.0,0.16445466]
[1767429442185,0.01124258,89807.0,89802.0,0.17559026]
[1767429442550,0.0001076,89807.0,89803.0,0.01113548]
[1767429442719,0.0001076,89807.0,89802.0,0.17559026]
[1767429443248,0.06680709,89811.0,89802.0,0.17559026]
[1767429443249,0.01113461,89810.0,89807.0,0.16370102]
[1767429443398,0.01113449,89811.0,89807.0,0.16370102]
[1767429443601,0.01113461,89810.0,89807.0,0.16370102]
[1767429443967,0.01113461,89810.0,89807.0,0.16091509]
[1767429444435,0.06680791,89810.0,89807.0,0.16091509]
[1767429444729,0.01113449,89811.0,89807.0,0.16091509]
[1767429446156,0.01113486,89808.0,89804.0,0.17561466]
[1767429446296,0.01109195,89809.0,89804.0,0.17561466]
[1767429446927,0.01109195,89809.0,89804.0,0.18675002]
[1767429447206,0.01113461,89810.0,89805.0,0.16445466]
[1767429447489,0.000999,89805.0,89804.0,0.17561466]
[1767429447680,0.00095686,89805.0,89804.0,0.17561466]
[1767429447907,0.01113474,89809.0,89804.0,0.18675002]
[1767429448276,0.01113424,89813.0,89806.0,0.01113511]
[1767429448484,0.06680521,89814.0,89807.0,0.01113498]
[1767429449291,0.01113424,89813.0,89807.0,0.01113498]
[1767429449496,0.01113424,89813.0,89808.0,0.01113486]
[1767429449695,0.01113436,89812.0,89807.0,0.01113498]
[1767429449900,0.01113449,89811.0,89805.0,0.01113523]
[1767429450102,0.000957,89807.0,89805.0,0.01113523]
[1767429450627,0.01113449,89811.0,89806.0,0.01113511]
[1767429451462,0.01113436,89812.0,89807.0,0.01113498]
[1767429451944,0.01113436,89812.0,89806.0,0.01113511]
[1767429451945,0.01113449,89811.0,89806.0,0.01113511]
[1767429452146,0.01113449,89811.0,89805.0,0.01113523]
[1767429452762,0.01113449,89811.0,89806.0,0.01113511]
[1767429453476,0.01113424,89813.0,89807.0,0.01113498]
[1767429453712,0.01113436,89812.0,89806.0,0.01113511]
[1767429453918,0.01113449,89811.0,89805.0,0.01113523]
[1767429454183,0.01113449,89811.0,89806.0,0.01113511]
[1767429454400,0.01113424,89813.0,89808.0,0.01113486]
[1767429454623,0.01113412,89814.0,89811.0,4.2e-05]
[1767429454844,0.01113412,89814.0,89808.0,0.01113486]
[1767429455680,0.01113424,89813.0,89807.0,0.01113498]
[1767429456265,0.01113424,89813.0,89808.0,0.01113486]
[1767429456467,0.01113424,89813.0,89806.0,0.01113511]
[1767429456468,0.01113436,89812.0,89806.0,0.01113511]
[1767429457207,0.01113436,89812.0,89807.0,0.01113498]
[1767429457623,0.01113424,89813.0,89807.0,0.01113498]
[1767429458276,0.000957,89807.0,89805.0,0.01113523]
[1767429458487,0.01113436,89812.0,89805.0,0.01113523]
[1767429458699,0.01113461,89810.0,89805.0,0.01113523]
[1767429458904,0.01113449,89811.0,89806.0,0.01113511]
[1767429459113,0.01113449,89811.0,89805.0,0.01113523]
[1767429459324,0.01113449,89811.0,89804.0,0.01116]
[1767429459325,0.000957,89805.0,89804.0,0.01116]
[1767429459536,0.01113474,89809.0,89804.0,0.01116]
[1767429459750,0.06680816,89810.0,89804.0,0.02229536]
[1767429459955,0.01113461,89810.0,89804.0,0.01116]
[1767429460374,0.01113461,89810.0,89804.0,0.02229536]
[1767429460791,0.01113474,89809.0,89804.0,0.02229536]
[1767429461005,0.01113474,89809.0,89804.0,0.010203]
[1767429461419,0.01113461,89810.0,89805.0,0.01113523]
[1767429462704,0.01113449,89811.0,89805.0,0.01113523]
[1767429462925,0.01113461,89810.0,89804.0,0.02133836]
[1767429463342,0.01113461,89810.0,89805.0,0.01113523]
[1767429463764,0.01113461,89810.0,89804.0,0.02133836]
[1767429464369,0.01113461,89810.0,89805.0,0.01113523]
[1767429464573,0.01113461,89810.0,89804.0,0.02133836]
[1767429464799,0.01113474,89809.0,89804.0,0.02133836]
[1767429465003,0.01113461,89810.0,89804.0,0.02133836]
[1767429465241,0.22270068,89807.0,89793.0,0.01113672]
[1767429465466,0.01113598,89799.0,89793.0,0.01113672]
[1767429465678,0.0111356,89802.0,89799.0,0.000999]
[1767429465888,0.01113548,89803.0,89799.0,0.000999]
[1767429466094,0.01113536,89804.0,89798.0,0.0111361]
[1767429466523,0.06681188,89805.0,89798.0,0.0111361]
[1767429466524,0.01113523,89805.0,89800.0,0.01113585]
[1767429466970,0.01113523,89805.0,89799.0,0.01113598]
[1767429467212,0.01113536,89804.0,89796.0,0.01113635]
[1767429467476,0.01113523,89805.0,89792.0,0.02229684]
[1767429467477,0.01113598,89799.0,89792.0,0.02229684]
[1767429467723,0.01113635,89796.0,89792.0,0.01116]
[1767429467935,0.06681923,89795.0,89792.0,0.01116]
[1767429468111,0.01109484,89795.0,89792.0,0.01116]
[1767429468360,0.01113635,89796.0,89792.0,0.01116]
[1767429468581,0.06681632,89799.0,89793.0,0.01113672]
[1767429468802,0.01113598,89799.0,89794.0,0.0111366]
[1767429469012,0.01113598,89799.0,89796.0,0.000999]
[1767429469013,0.0111361,89798.0,89796.0,0.000999]
[1767429469218,0.0111361,89798.0,89792.0,0.01116]
[1767429469422,0.01113622,89797.0,89792.0,0.01116]
[1767429469628,0.01113622,89797.0,89792.0,0.02129684]
[1767429469834,0.01113622,89797.0,89792.0,0.01016]
[1767429470470,0.01113647,89795.0,89792.0,0.01016]
[1767429470692,0.01113672,89793.0,89791.0,0.00291969]
[1767429470896,0.06682086,89793.0,89791.0,0.00291969]
[1767429471116,0.01113684,89792.0,89787.0,0.17673536]
[1767429471336,0.01113672,89793.0,89789.0,0.1655979]
[1767429471545,0.0111366,89794.0,89789.0,0.1655979]
[1767429471754,0.0111366,89794.0,89789.0,0.17673512]
[1767429472238,0.01113622,89797.0,89794.0,0.000999]
[1767429472465,0.01113622,89797.0,89791.0,0.01113697]
[1767429472695,0.01113647,89795.0,89790.0,0.01113709]
[1767429472924,0.01113647,89795.0,89790.0,0.17673499]
[1767429473169,0.01113635,89796.0,89790.0,0.17673499]
[1767429473596,0.01113647,89795.0,89790.0,0.1655979]
[1767429473901,0.01113622,89797.0,89795.0,0.000999]
[1767429474117,0.05567866,89802.0,89795.0,0.000999]
[1767429474352,0.02229548,89803.0,89795.0,0.000999]
[1767429474556,0.01116,89803.0,89800.0,0.01113585]
[1767429475616,0.01116,89804.0,89803.0,0.000999]
[1767429476259,0.01116,89804.0,89802.0,0.0111356]
[1767429477165,0.01116,89806.0,89803.0,0.01113548]
[1767429478084,0.01116,89806.0,89802.0,0.0111356]
[1767429478307,0.01116,89806.0,89803.0,0.01113548]
[1767429480150,0.01116,89806.0,89802.0,0.0111356]
[1767429480562,0.01113523,89805.0,89799.0,0.01113598]
[1767429480793,0.01113548,89803.0,89797.0,0.01113622]
[1767429481005,0.01113573,89801.0,89794.0,0.0111366]
[1767429481228,0.06681513,89800.0,89795.0,0.01113647]
[1767429481443,0.16044243,89799.0,89795.0,0.01113647]
[1767429481656,0.01113598,89799.0,89794.0,0.0111366]
[1767429481862,0.01113573,89801.0,89794.0,0.0111366]
[1767429482275,0.01113573,89801.0,89796.0,0.01113635]
[1767429482483,0.01113573,89801.0,89794.0,0.0111366]
[1767429482691,0.01113585,89800.0,89795.0,0.01113647]
[1767429482901,0.01113573,89801.0,89796.0,0.01113635]
[1767429483109,0.01113573,89801.0,89795.0,0.01113647]
[1767429483316,0.01113585,89800.0,89795.0,0.01113647]
[1767429483516,0.01113573,89801.0,89796.0,0.01113635]
[1767429483729,0.01113548,89803.0,89796.0,0.01113635]
[1767429483937,0.01113548,89803.0,89801.0,0.000999]
[1767429484345,0.01113573,89801.0,89796.0,0.01113635]
[1767429485398,0.0111356,89802.0,89797.0,0.01113622]
[1767429485607,0.01113573,89801.0,89795.0,0.01113647]
[1767429486415,0.01116,89804.0,89796.0,0.06681806]
[1767429486793,0.01116,89805.0,89801.0,0.01213473]
[1767429487044,5.191e-05,89807.0,89804.0,0.06681155]
[1767429487256,0.01113412,89814.0,89807.0,0.01113498]
[1767429487257,0.01116,89810.0,89807.0,0.01113498]
[1767429487477,0.010161,89810.0,89807.0,0.01113498]
[1767429488106,0.010161,89810.0,89806.0,0.01113511]
[1767429488321,0.010161,89810.0,89807.0,0.01113498]
[1767429489486,0.01113436,89812.0,89807.0,0.01113498]
[1767429489697,0.01113424,89813.0,89808.0,0.01113486]
[1767429489895,0.01113436,89812.0,89807.0,0.01113498]
[1767429490105,0.000999,89808.0,89806.0,0.01113511]
[1767429490510,0.01113436,89812.0,89807.0,0.01113498]
[1767429490724,0.01113424,89813.0,89807.0,0.01113498]
[1767429491149,0.01113412,89814.0,89808.0,0.01113486]
[1767429491358,0.01128337,89820.0,89815.0,0.01113399]
[1767429491571,0.01116,89819.0,89815.0,0.01113399]
[1767429491776,0.01116,89819.0,89814.0,0.01113412]
[1767429491981,0.0222935,89819.0,89814.0,0.01113412]
[1767429492423,0.01116,89819.0,89814.0,0.01113412]
[1767429492622,0.0222935,89819.0,89814.0,0.01113412]
[1767429494565,0.01116,89819.0,89814.0,0.01113412]
[1767429495632,0.01116,89819.0,89815.0,0.01113399]
[1767429495852,0.01116,89819.0,89814.0,0.01113412]
[1767429496055,0.01131,89820.0,89816.0,0.01113387]
[1767429496436,0.02244337,89820.0,89814.0,0.01113412]
[1767429497177,0.02244337,89820.0,89815.0,0.01113399]
[1767429497389,0.17175243,89820.0,89815.0,0.01113399]
[1767429497599,0.17175243,89820.0,89816.0,0.01113387]
[1767429498307,0.17175243,89820.0,89815.0,0.01113399]
[1767429498649,0.1828858,89820.0,89815.0,0.01113399]
[1767429498855,0.02244337,89820.0,89815.0,0.01113399]
[1767429498988,0.01131,89820.0,89816.0,0.01113387]
[1767429499405,0.01113288,89824.0,89817.0,0.01113374]
[1767429499682,0.18273543,89823.0,89815.0,0.06680383]
[1767429499860,0.18273543,89823.0,89817.0,0.01113374]
[1767429500196,0.01113312,89822.0,89816.0,0.01113387]
[1767429500610,0.17157555,89822.0,89817.0,0.01113374]
[1767429500830,0.05586422,89825.0,89817.0,0.01113374]
[1767429500831,0.0001566,89825.0,89817.0,0.01113374]
[1767429501031,0.0001566,89825.0,89822.0,0.06679858]
[1767429501411,0.0001566,89825.0,89822.0,0.01113312]
[1767429501818,0.0001566,89825.0,89821.0,0.01113325]
[1767429501993,0.0001566,89825.0,89822.0,0.06679869]
[1767429503491,0.01116,89830.0,89829.0,0.01113226]
[1767429503773,0.01116,89830.0,89827.0,0.01113251]
[1767429503774,0.01113189,89832.0,89827.0,0.01113251]
[1767429503932,0.01149046,89832.0,89827.0,0.01113251]
[1767429504330,0.000999,89827.0,89826.0,0.01113263]
[1767429504532,0.000999,89827.0,89826.0,0.0667958]
[1767429504731,0.01149046,89832.0,89826.0,0.01113263]
[1767429504964,0.01113213,89830.0,89824.0,0.01113288]
[1767429505173,0.10732253,89825.0,89822.0,0.06679843]
[1767429505312,0.000999,89824.0,89822.0,0.06679843]
[1767429505775,0.10732253,89825.0,89822.0,0.01113312]
[1767429506014,0.10732253,89825.0,89822.0,0.00834692]
[1767429506185,0.10732253,89825.0,89820.0,0.01113337]
[1767429506386,0.10732253,89825.0,89821.0,0.01113325]
[1767429506592,0.10732253,89825.0,89822.0,0.01113312]
[1767429507258,0.000999,89822.0,89821.0,0.01113325]
[1767429507435,0.10732253,89825.0,89822.0,0.01113312]
[1767429509655,0.10732253,89825.0,89821.0,0.01113325]
[1767429509861,0.10732253,89825.0,89822.0,0.01113312]
[1767429510390,0.000999,89822.0,89819.0,0.0222935]
[1767429510606,0.15860247,89823.0,89819.0,0.01116]
[1767429510758,0.01113399,89815.0,89809.0,0.01113474]
[1767429510982,0.01113399,89815.0,89808.0,0.01116]
[1767429510983,0.01113424,89813.0,89808.0,0.01116]
[1767429511179,0.000999,89809.0,89808.0,0.01116]
[1767429511515,0.06679811,89823.0,89817.0,0.01113374]
[1767429511646,0.0111335,89819.0,89812.0,0.01113436]
[1767429511850,0.01113374,89817.0,89811.0,0.01113449]
[1767429512193,0.05566732,89820.0,89811.0,0.01113449]
[1767429512194,0.06680069,89820.0,89814.0,0.01113412]
[1767429512426,0.06680069,89820.0,89812.0,0.01113436]
[1767429512567,0.01113374,89817.0,89812.0,0.01113436]
[1767429512978,0.06680069,89820.0,89813.0,0.01113424]
[1767429513322,0.0111335,89819.0,89814.0,0.01113412]
[1767429513531,0.0111335,89819.0,89813.0,0.01113424]
[1767429513696,0.06679889,89822.0,89815.0,0.01113399]
[1767429513913,0.01113337,89820.0,89815.0,0.01113399]
[1767429514769,0.06679889,89822.0,89815.0,0.01113399]
[1767429515025,0.01113337,89820.0,89815.0,0.01113399]
[1767429515645,0.01113337,89820.0,89814.0,0.01113412]
[1767429515849,0.01113337,89820.0,89815.0,0.01113399]
[1767429516052,0.01113337,89820.0,89814.0,0.01113412]
[1767429516382,0.01113337,89820.0,89815.0,0.01113399]
[1767429516587,0.01113337,89820.0,89813.0,0.01113424]
[1767429517192,0.01113337,89820.0,89812.0,0.01113436]
[1767429517413,0.01113362,89818.0,89812.0,0.01113436]
[1767429517846,0.01113399,89815.0,89807.0,0.01113498]
[1767429518046,0.01113387,89816.0,89809.0,0.01113474]
[1767429518399,0.01113387,89816.0,89811.0,0.01113449]
[1767429518609,0.01113412,89814.0,89808.0,0.02229486]
[1767429518842,0.01113412,89814.0,89802.0,0.0111356]
[1767429519051,0.01113511,89806.0,89802.0,0.01116]
[1767429519244,0.01113498,89807.0,89802.0,0.01116]
[1767429519472,0.01113486,89808.0,89807.0,0.000999]
[1767429519694,0.01113486,89808.0,89802.0,0.01116]
[1767429519695,0.01113486,89808.0,89803.0,0.01113548]
[1767429519890,0.01113511,89806.0,89802.0,0.01116]
[1767429520088,0.01113486,89808.0,89802.0,0.0222956]
[1767429520269,0.01113498,89807.0,89802.0,0.01116]
[1767429520577,0.01113511,89806.0,89802.0,0.01116]
[1767429520925,0.01113523,89805.0,89802.0,0.01116]
[1767429521326,0.06681152,89805.0,89799.0,0.01113598]
[1767429521557,0.01113548,89803.0,89796.0,0.01116]
[1767429521703,0.01113523,89805.0,89792.0,0.01113684]
[1767429521704,0.10732253,89797.0,89792.0,0.01113684]
[1767429521902,0.11845875,89797.0,89791.0,0.01113697]
[1767429522267,0.0111366,89794.0,89791.0,0.0001076]
[1767429522483,0.0111366,89794.0,89784.0,0.01165647]
[1767429522484,0.01113722,89789.0,89784.0,0.00047498]
[1767429522688,0.01113722,89789.0,89784.0,0.00052689]
[1767429522689,0.01113746,89787.0,89784.0,0.00052689]
[1767429522899,0.01113734,89788.0,89784.0,0.00052689]
[1767429523029,0.01113734,89788.0,89787.0,0.000999]
[1767429523233,0.01113734,89788.0,89784.0,0.00052689]
[1767429523234,0.01116,89789.0,89784.0,0.01166473]
[1767429523500,0.01116,89789.0,89786.0,0.01113759]
[1767429523702,0.01116,89788.0,89786.0,0.01113759]
[1767429523995,0.01116,89789.0,89788.0,0.01213634]
[1767429524127,0.01116,89789.0,89788.0,0.000999]
[1767429524328,0.01116,89789.0,89787.0,0.01113746]
[1767429525272,0.010161,89789.0,89787.0,0.01113746]
[1767429526248,0.010161,89789.0,89786.0,0.01113759]
[1767429526375,0.010161,89789.0,89785.0,0.01113771]
[1767429527027,0.010161,89789.0,89786.0,0.01113759]
[1767429527953,0.02129822,89789.0,89784.0,0.00052689]
[1767429528143,0.02129822,89789.0,89784.0,0.01166473]
[1767429528304,0.010161,89789.0,89785.0,0.01113771]
[1767429529491,0.02129822,89789.0,89784.0,0.01166473]
[1767429529692,0.02129822,89789.0,89786.0,0.01113759]
[1767429529693,0.010161,89789.0,89786.0,0.01113759]
[1767429530040,0.01116,89789.0,89788.0,0.01113734]
[1767429530259,0.01116,89789.0,89786.0,0.06682507]
[1767429532210,0.0111366,89794.0,89788.0,0.01113734]
[1767429532523,0.11848253,89793.0,89792.0,0.01113684]
[1767429534236,0.11848253,89793.0,89791.0,0.01113697]
[1767429534439,0.000999,89792.0,89790.0,0.01113709]
[1767429534606,0.11848253,89793.0,89790.0,0.01113709]
[1767429535559,0.000999,89790.0,89789.0,0.01113722]
[1767429535772,0.11848253,89793.0,89789.0,0.01113722]
[1767429536118,0.12961925,89793.0,89785.0,0.01113771]
[1767429536321,0.12961925,89793.0,89785.0,0.01013871]
[1767429536589,0.01113709,89790.0,89785.0,0.01013871]
[1767429536744,0.01113709,89790.0,89784.0,0.01166473]
[1767429536944,0.01113709,89790.0,89785.0,0.01113771]
[1767429537140,0.01116,89792.0,89786.0,0.01113759]
[1767429537537,0.02229684,89792.0,89787.0,0.01113746]
[1767429537677,0.01113697,89791.0,89786.0,0.01113759]
[1767429538209,0.01113697,89791.0,89785.0,0.01113771]
[1767429538626,0.01113697,89791.0,89786.0,0.01113759]
[1767429539574,0.01113709,89790.0,89784.0,0.01166473]
[1767429539890,0.01113759,89786.0,89779.0,0.01113846]
[1767429540306,0.01113759,89786.0,89780.0,0.01113833]
[1767429540893,0.01113734,89788.0,89782.0,0.01113809]
[1767429541352,0.01113734,89788.0,89783.0,0.01113796]
[1767429541527,0.01113734,89788.0,89782.0,0.01113809]
[1767429541686,0.01113759,89786.0,89781.0,0.01113821]
[1767429542035,0.01113759,89786.0,89778.0,0.01113858]
[1767429542036,0.01113784,89784.0,89778.0,0.01113858]
[1767429542434,0.01113784,89784.0,89779.0,0.01113846]
[1767429542863,0.01113796,89783.0,89778.0,0.01113858]
[1767429543069,0.01113784,89784.0,89778.0,0.01113858]
[1767429543285,0.01113796,89783.0,89777.0,0.01113871]
[1767429543773,0.01113846,89779.0,89773.0,0.0111392]
[1767429544011,0.01113796,89783.0,89779.0,0.000999]
[1767429544444,0.01116,89784.0,89779.0,0.01213746]
[1767429544595,0.02229784,89784.0,89779.0,0.01113846]
[1767429544793,0.01116,89784.0,89779.0,0.01113846]
[1767429545061,0.01116,89784.0,89780.0,0.01113833]
[1767429545267,0.02229784,89784.0,89779.0,0.01113846]
[1767429545462,0.01113809,89782.0,89777.0,0.01113871]
[1767429545659,0.01113796,89783.0,89778.0,0.01113858]
[1767429546009,0.02229784,89784.0,89779.0,0.01113846]
[1767429546207,0.01116,89784.0,89779.0,0.01113846]
[1767429546740,0.01113796,89783.0,89778.0,0.01113858]
[1767429547727,0.02229784,89784.0,89779.0,0.01113846]
[1767429548148,0.02229784,89784.0,89778.0,0.01113858]
[1767429548149,0.01113796,89783.0,89778.0,0.01113858]
[1767429548751,0.01113796,89783.0,89777.0,0.01113871]
[1767429548974,0.02229784,89784.0,89779.0,0.01113846]
[1767429549717,0.01113796,89783.0,89778.0,0.01113858]
[1767429549865,0.01113796,89783.0,89777.0,0.01113871]
[1767429550370,0.01116,89784.0,89783.0,0.000999]
[1767429550570,0.01116,89784.0,89782.0,0.05568983]
[1767429551395,0.01116,89797.0,89791.0,0.01113697]
[1767429551607,0.01116,89797.0,89792.0,0.01113684]
[1767429551807,0.01116,89797.0,89793.0,0.01113672]
[1767429551981,0.02229622,89797.0,89792.0,0.01113684]
[1767429552206,0.01116,89797.0,89793.0,0.01113672]
[1767429552430,0.01116,89797.0,89792.0,0.01113684]
[1767429552676,0.01116,89797.0,89793.0,0.01113672]
[1767429553533,0.01116,89797.0,89794.0,0.0111366]
[1767429554342,0.01116,89797.0,89793.0,0.01113672]
[1767429554541,0.01116,89797.0,89794.0,0.0111366]
[1767429555466,0.00060242,89799.0,89797.0,0.000999]
[1767429555702,0.01116,89798.0,89797.0,0.000999]
[1767429555902,0.01116,89798.0,89794.0,0.06681921]
[1767429555903,0.15891704,89798.0,89794.0,0.0111366]
[1767429556196,0.10732253,89797.0,89792.0,0.01113684]
[1767429556619,0.10732253,89797.0,89793.0,0.01113672]
[1767429557024,0.10732253,89797.0,89794.0,0.0111366]
[1767429557227,0.10732253,89797.0,89790.0,0.0651015]
[1767429557386,0.000999,89794.0,89791.0,0.01113697]
[1767429557587,0.01113647,89795.0,89790.0,0.00941652]
[1767429557788,0.01113635,89796.0,89790.0,0.00941652]
[1767429557991,0.01113647,89795.0,89789.0,0.01113722]
[1767429558194,0.01113647,89795.0,89790.0,0.01113709]
[1767429558657,0.01113635,89796.0,89788.0,0.01113734]
[1767429558812,0.11845875,89797.0,89789.0,0.01113722]
[1767429559151,0.01113672,89793.0,89787.0,0.01113746]
[1767429559346,0.01113684,89792.0,89785.0,0.01113771]
[1767429559575,0.01113697,89791.0,89786.0,0.01113759]
[1767429560923,0.01113697,89791.0,89785.0,0.01113771]
[1767429561332,0.01113697,89791.0,89786.0,0.01113759]
[1767429561532,0.01113684,89792.0,89787.0,0.01113746]
[1767429561880,0.01109466,89792.0,89787.0,0.01113746]
[1767429562082,0.0111366,89794.0,89789.0,0.01113722]
[1767429562412,0.0111366,89794.0,89787.0,0.01113746]
[1767429562615,0.01113672,89793.0,89787.0,0.01113746]
[1767429563167,0.01113684,89792.0,89787.0,0.01113746]
[1767429563289,0.01113672,89793.0,89787.0,0.01113746]
[1767429563728,0.01113672,89793.0,89788.0,0.01113734]
[1767429566222,0.01113672,89793.0,89787.0,0.01113746]
[1767429566423,0.01113672,89793.0,89788.0,0.01113734]
[1767429566658,0.06682041,89793.0,89787.0,0.01113746]
[1767429566871,0.01113684,89792.0,89786.0,0.01113759]
[1767429567040,0.01113709,89790.0,89785.0,0.01113771]
[1767429567244,0.01113709,89790.0,89782.0,0.21593088]
[1767429567245,0.01113709,89790.0,89784.0,0.01113784]
[1767429567804,0.01113722,89789.0,89784.0,0.01113784]
[1767429568014,0.01113722,89789.0,89783.0,0.01113796]
[1767429568226,0.01113709,89790.0,89784.0,0.01113784]
[1767429568637,0.01113709,89790.0,89785.0,0.01113771]
[1767429568773,0.01113697,89791.0,89786.0,0.01113759]
[1767429569144,0.01113697,89791.0,89785.0,0.01113771]
[1767429569350,0.01113684,89792.0,89786.0,0.01113759]
[1767429569653,0.01113697,89791.0,89786.0,0.01113759]
[1767429570946,0.01113684,89792.0,89786.0,0.01113759]
[1767429571387,0.01113684,89792.0,89787.0,0.01113746]
[1767429571910,0.01113672,89793.0,89788.0,0.01113734]
[1767429572112,0.000999,89788.0,89786.0,0.01113759]
[1767429572755,0.01113684,89792.0,89787.0,0.01113746]
[1767429572956,0.01113684,89792.0,89786.0,0.01113759]
[1767429573110,0.01113684,89792.0,89787.0,0.00835076]
[1767429573325,0.01113684,89792.0,89786.0,0.01113759]
[1767429573654,0.01113709,89790.0,89785.0,0.01113771]
[1767429574010,0.06684231,89796.0,89786.0,0.06682555]
[1767429574212,0.01113672,89793.0,89786.0,0.06682555]
[1767429574431,0.01113647,89795.0,89788.0,0.01113734]
[1767429574925,0.01113672,89793.0,89787.0,0.01113746]
[1767429575794,0.0111366,89794.0,89787.0,0.01113746]
[1767429575997,0.01113684,89792.0,89786.0,0.01113759]
[1767429576199,0.01113684,89792.0,89787.0,0.01113746]
[1767429576399,0.01113684,89792.0,89786.0,0.01113759]
[1767429576596,0.01113684,89792.0,89787.0,0.01113746]
[1767429577038,0.01113684,89792.0,89786.0,0.01113759]
[1767429577222,0.02229635,89796.0,89787.0,0.05568674]
[1767429577920,0.01113647,89795.0,89790.0,0.01113709]
[1767429578117,0.02229635,89796.0,89789.0,0.01113722]
[1767429578528,0.0111366,89794.0,89788.0,0.01113734]
[1767429578726,0.0111366,89794.0,89789.0,0.01113722]
[1767429579122,0.01113647,89795.0,89790.0,0.01113709]
[1767429579706,0.0111366,89794.0,89789.0,0.01113722]
[1767429579927,0.02229635,89796.0,89790.0,0.01113709]
[1767429580403,0.01116,89796.0,89791.0,0.01113697]
[1767429581665,0.01113647,89795.0,89789.0,0.01113722]
[1767429582024,0.01116,89796.0,89791.0,0.01113697]
[1767429582360,0.02229635,89796.0,89790.0,0.01113709]
[1767429582814,0.02229635,89796.0,89791.0,0.01113697]
[1767429583037,0.01116,89796.0,89791.0,0.01113697]
[1767429583366,0.01116,89796.0,89790.0,0.01113709]
[1767429583367,0.02229635,89796.0,89790.0,0.01113709]
[1767429583504,0.02229635,89796.0,89791.0,0.01113697]
[1767429584515,0.02229635,89796.0,89790.0,0.01113709]
[1767429584722,0.00060242,89799.0,89748.0,1.25487098]
[1767429584723,0.01113784,89784.0,89767.0,0.22279744]
[1767429584930,0.01113846,89779.0,89771.0,0.01113945]
[1767429585140,0.01113895,89775.0,89767.0,0.01113995]
[1767429585312,0.01113895,89775.0,89766.0,0.01114007]
[1767429585313,0.0111392,89773.0,89766.0,0.01114007]
[1767429585450,0.0111392,89773.0,89765.0,0.01114019]
[1767429585451,0.01109643,89773.0,89763.0,0.01114044]
[1767429585693,0.01109643,89773.0,89770.0,1e-08]
[1767429585883,0.06679304,89773.0,89770.0,1e-08]
[1767429586090,0.01109643,89773.0,89770.0,1e-08]
[1767429586287,0.01113908,89774.0,89770.0,1e-08]
[1767429586509,0.01113883,89776.0,89770.0,1e-08]
[1767429586709,0.14122154,89777.0,89770.0,1e-08]
[1767429586912,0.13008283,89777.0,89773.0,0.05569603]
[1767429587107,0.01116,89777.0,89774.0,0.01113908]
[1767429587362,0.01116,89777.0,89773.0,0.0668351]
[1767429587506,0.01116,89777.0,89774.0,0.01113908]
[1767429590143,0.01116,89777.0,89773.0,0.0111392]
[1767429590346,0.000999,89773.0,89770.0,1e-08]
[1767429591012,0.01113895,89775.0,89770.0,0.01113958]
[1767429591213,0.01113895,89775.0,89770.0,0.00549263]
[1767429591381,0.01113933,89772.0,89765.0,0.01114019]
[1767429591569,0.01113945,89771.0,89763.0,0.05570179]
[1767429591769,0.0111392,89773.0,89768.0,0.01113982]
[1767429592133,0.01113908,89774.0,89768.0,0.01113982]
[1767429592537,0.0111392,89773.0,89767.0,0.01113995]
[1767429592689,0.0111392,89773.0,89768.0,0.01113982]
[1767429592894,0.000999,89768.0,89766.0,0.01114007]
[1767429593098,0.01113945,89771.0,89766.0,0.01114007]
[1767429593530,0.0111397,89769.0,89759.0,0.05570467]
[1767429593730,0.0111397,89769.0,89762.0,0.01114057]
[1767429593939,0.01113995,89767.0,89761.0,0.01114069]
[1767429594223,0.01113995,89767.0,89760.0,0.02230081]
[1767429594224,0.01114019,89765.0,89760.0,0.01116]
[1767429594398,0.01113995,89767.0,89761.0,0.01114069]
[1767429594621,0.01114019,89765.0,89760.0,0.02230081]
[1767429595218,0.01114007,89766.0,89761.0,0.01114069]
[1767429595412,0.01113995,89767.0,89762.0,0.01114057]
[1767429595790,0.01113995,89767.0,89761.0,0.01114069]
[1767429596631,0.01114007,89766.0,89760.0,0.02230081]